[Event "Panchenko Memorial-B 2021"]
[Site "Chelyabinsk"]
[Date "2021.09.20"]
[Round "9.3"]
[White "Goltseva, Ekaterina"]
[Black "Borisova, Ekaterina"]
[Result "1-0"]
[ECO "A15"]
[WhiteElo "2286"]
[BlackElo "2276"]
[Annotator "NA"]
[PlyCount "67"]
[EventDate "2021.09.13"]
[EventType "swiss"]
[EventCountry "RUS"]
[SourceTitle "playchess.com"]
[Source "ChessBase"]
[SourceQuality "1"]
[TimeControl "5400+30"]

1. c4 {[%emt 0:01:13]} Nf6 {[%emt 0:00:09]} 2. Nf3 {[%emt 0:00:05]} e6 {[%emt 0:00:30]} 3. e3 {[%emt 0:00:12]} c5 {[%emt 0:00:05]} 4. b3 {[%emt 0:04:09]} Be7 {[%emt 0:00:21]} 5. Bb2 {[%emt 0:00:20]} b6 {[%emt 0:00:30]} 6. Be2 {[%emt 0:05:38]} Bb7 {[%emt 0:00:06]} 7. O-O {[%emt 0:01:58]} Qc7 {[%emt 0:01:55]} 8. d4 {[%emt 0:13:08]} d6 {[%emt 0:01:20]} 9. Nc3 {[%emt 0:00:38]} a6 {[%emt 0:00:17]} 10. Rc1 {[%emt 0:03:14]} Nbd7 {[%emt 0:00:06]} 11. Nd2 {[%emt 0:04:19]} O-O {[%emt 0:01:42]} 12. f4 $11 {[%emt 0:06:14]} d5 {[%emt 0:05:56]} 13. cxd5 {[%emt 0:06:47]} exd5 {[%emt 0:01:41]} 14. Nf3 {[%emt 0:06:22]} b5 {[%emt 0:05:30]} 15. a4 {[%emt 0:06:00]} b4 {[%emt 0:12:09]} 16. Nb1 {[%emt 0:00:17]} Qb6 {[%emt 0:01:53]} 17. Ne5 {[%emt 0:04:31]} Nxe5 {[%emt 0:08:07]} 18. dxe5 {[%emt 0:00:19]} Ne4 {[%emt 0:00:04]} 19. Nd2 {[%emt 0:01:51]} f5 {[%emt 0:05:59]} 20. Nxe4 {[%emt 0:04:46]} fxe4 {[%emt 0:00:06]} 21. Qe1 {[%emt 0:09:36]} d4 {[%emt 0:08:28]} 22. Bc4+ {[%emt 0:00:12]} Kh8 {[%emt 0:00:04]} 23. Rd1 {[%emt 0:00:18]} Rad8 {[%emt 0:00:15]} 24. Qf2 {[%emt 0:01:18]} d3 {[%emt 0:07:43]} 25. f5 {[%emt 0:02:16]} Bd5 {[%emt 0:02:01]} 26. f6 {[%emt 0:04:35]} Bxc4 {[%emt 0:00:48]} 27. bxc4 {[%emt 0:03:13]} Rf7 {[%emt 0:04:47]} 28. fxe7 {[%emt 0:01:57]} Rxf2 {[%emt 0:00:05]} 29. exd8=Q+ {[%emt 0:00:05]} Qxd8 {[%emt 0:00:05]} 30. Rxf2 {[%emt 0:00:04]} h6 {[%emt 0:00:21]} 31. e6 {[%emt 0:00:45]} Qg5 {[%emt 0:01:13]} 32. Rf4 {[%emt 0:00:14]} Qh5 {[%emt 0:00:25]} 33. Rd2 {[%emt 0:00:18]} Qe8 {[%emt 0:00:57]} 34. Rxe4 {[%emt 0:01:02]} 1-0

[Event "Panchenko Memorial-B 2021"]
[Site "Chelyabinsk"]
[Date "2021.09.20"]
[Round "9.4"]
[White "Zherebtsova, Alexandra"]
[Black "Zhapova, Yana"]
[Result "0-1"]
[ECO "D31"]
[WhiteElo "2246"]
[BlackElo "2212"]
[Annotator "NA"]
[PlyCount "104"]
[EventDate "2021.09.13"]
[EventType "swiss"]
[EventCountry "RUS"]
[SourceTitle "playchess.com"]
[Source "ChessBase"]
[SourceQuality "1"]
[TimeControl "5400+30"]

1. c4 {[%emt 0:06:26]} e6 {[%emt 0:00:11]} 2. Nc3 {[%emt 0:00:31]} d5 {[%emt 0:00:11]} 3. d4 {[%emt 0:00:30]} c6 {[%emt 0:00:07]} 4. cxd5 {[%emt 0:01:20]} exd5 {[%emt 0:00:09]} 5. Bf4 {[%emt 0:00:18]} Bf5 {[%emt 0:02:15]} 6. e3 {[%emt 0:01:23]} Nf6 {[%emt 0:00:24]} 7. Nge2 {[%emt 0:01:00]} Nbd7 {[%emt 0:05:50]} 8. Ng3 {[%emt 0:01:07]} Bg6 {[%emt 0:00:43]} 9. h4 {[%emt 0:01:12]} h5 {[%emt 0:01:33]} 10. Bd3 {[%emt 0:00:26]} Bxd3 $1 {[%emt 0:05:36]} 11. Qxd3 {[%emt 0:00:12]} Nb6 {[%emt 0:01:49]} 12. Bg5 {[%emt 0:08:01]} Be7 {[%emt 0:07:54]} 13. Nf5 {[%emt 0:03:02]} g6 {[%emt 0:02:01]} 14. Nxe7 {[%emt 0:01:11]} Qxe7 {[%emt 0:00:09]} 15. O-O-O {[%emt 0:04:43]} Qe6 $14 {[%emt 0:10:13]} 16. Rhe1 {[%emt 0:07:49]} Ne4 {[%emt 0:01:26]} 17. Nxe4 {[%emt 0:03:06]} dxe4 {[%emt 0:00:15]} 18. Qa3 {[%emt 0:02:34]} f6 {[%emt 0:07:50]} 19. Bf4 {[%emt 0:01:29]} Nd5 {[%emt 0:00:28]} 20. Bh2 {[%emt 0:08:54]} Rh7 {[%emt 0:07:47]} 21. f3 {[%emt 0:06:05]} Rd7 {[%emt 0:03:22]} 22. Rd2 {[%emt 0:08:13]} a6 {[%emt 0:04:19]} 23. Qc5 {[%emt 0:02:28]} Re7 {[%emt 0:09:10]} 24. a3 {[%emt 0:07:07]} a5 {[%emt 0:02:50]} 25. Kb1 {[%emt 0:03:59]} a4 {[%emt 0:02:20]} 26. Bd6 {[%emt 0:01:06]} Rd7 {[%emt 0:00:12]} 27. Bg3 {[%emt 0:00:15]} Kf7 {[%emt 0:02:04]} 28. Rc2 {[%emt 0:04:31]} Ra6 {[%emt 0:03:17]} 29. Qc4 {[%emt 0:01:51]} b5 {[%emt 0:01:43]} 30. Qf1 {[%emt 0:00:12]} Rb6 {[%emt 0:00:08]} 31. fxe4 {[%emt 0:02:53]} Qxe4 {[%emt 0:00:08]} 32. Qf3 {[%emt 0:00:25]} Re7 {[%emt 0:01:09]} 33. Bf2 {[%emt 0:00:26]} b4 {[%emt 0:04:26]} 34. Qxe4 {[%emt 0:00:36]} Rxe4 {[%emt 0:00:05]} 35. axb4 {[%emt 0:00:29]} Nxb4 {[%emt 0:00:10]} 36. Rc3 {[%emt 0:00:31]} Ke6 {[%emt 0:02:21]} 37. Ra3 {[%emt 0:00:21]} Nd5 {[%emt 0:02:39]} 38. Rc1 {[%emt 0:01:54]} Ra6 {[%emt 0:02:01]} 39. Rc4 {[%emt 0:01:33]} Rg4 {[%emt 0:00:57]} 40. g3 {[%emt 0:00:24]} g5 {[%emt 0:00:36]} 41. hxg5 {[%emt 0:01:06]} fxg5 {[%emt 0:00:20]} 42. Raxa4 {[%emt 0:01:41]} Rxa4 {[%emt 0:00:35]} 43. Rxa4 {[%emt 0:00:02]} h4 {[%emt 0:00:28]} 44. gxh4 {[%emt 0:00:46]} gxh4 {[%emt 0:00:05]} 45. Rc4 {[%emt 0:03:14]} Kd7 {[%emt 0:04:19]} 46. Rc1 {[%emt 0:00:41]} h3 {[%emt 0:00:41]} 47. e4 {[%emt 0:05:02]} Nf4 {[%emt 0:01:27]} 48. Be3 {[%emt 0:00:38]} Nd3 {[%emt 0:02:39]} 49. Rh1 {[%emt 0:00:40]} Rg3 {[%emt 0:00:04]} 50. Bc1 {[%emt 0:00:33]} Nf2 {[%emt 0:00:11]} 51. Re1 {[%emt 0:00:24]} h2 {[%emt 0:00:13]} 52. Bf4 {[%emt 0:00:11]} Rg1 {[%emt 0:00:05]} 0-1

[Event "Panchenko Memorial-B 2021"]
[Site "Chelyabinsk"]
[Date "2021.09.20"]
[Round "9.5"]
[White "Petrova, Irina"]
[Black "Bodnaruk, Anastasia"]
[Result "0-1"]
[ECO "B31"]
[WhiteElo "2121"]
[BlackElo "2425"]
[Annotator "NA"]
[PlyCount "102"]
[EventDate "2021.09.13"]
[EventType "swiss"]
[EventCountry "RUS"]
[SourceTitle "playchess.com"]
[Source "ChessBase"]
[SourceQuality "1"]
[TimeControl "5400+30"]

1. e4 {[%emt 0:00:02]} c5 {[%emt 0:00:03]} 2. Nf3 {[%emt 0:00:05]} Nc6 {[%emt 0:00:04]} 3. Bb5 {[%emt 0:00:08]} g6 {[%emt 0:00:06]} 4. Bxc6 {[%emt 0:00:05]} dxc6 {[%emt 0:00:02]} 5. d3 {[%emt 0:00:09]} Bg7 {[%emt 0:00:13]} 6. Nc3 {[%emt 0:00:07]} Nf6 {[%emt 0:01:06]} 7. Be3 {[%emt 0:00:06]} b6 {[%emt 0:00:23]} 8. h3 {[%emt 0:00:07]} Nd7 {[%emt 0:01:19]} 9. Qd2 {[%emt 0:00:10]} h6 {[%emt 0:00:25]} 10. O-O {[%emt 0:00:20]} e5 {[%emt 0:01:19]} 11. Nh2 {[%emt 0:00:25]} Nf8 {[%emt 0:00:52]} 12. f4 {[%emt 0:00:41]} exf4 {[%emt 0:00:10]} 13. Bxf4 {[%emt 0:00:05]} Ne6 {[%emt 0:00:20]} 14. Be3 {[%emt 0:00:06]} Nd4 {[%emt 0:04:36]} 15. Nd1 {[%emt 0:00:09]} (15. e5 $5) 15... Be6 {[%emt 0:16:57]} 16. c3 {[%emt 0:01:13]} Nb5 {[%emt 0:00:04]} 17. Nf2 {[%emt 0:00:43]} Nd6 {[%emt 0:12:01]} 18. a4 {[%emt 0:05:21]} a5 {[%emt 0:04:02]} 19. Rae1 {[%emt 0:05:31]} Qc7 {[%emt 0:07:44]} 20. Nfg4 {[%emt 0:05:47]} (20. Nf3 $16) 20... O-O-O {[%emt 0:00:28]} 21. Bf4 {[%emt 0:13:01]} ({Of course not} 21. Bxh6 {[#]} Nc4 $1 $17) 21... h5 {[%emt 0:09:59]} 22. Nf2 $11 {[%emt 0:04:11]} Qa7 {[%emt 0:02:40]} 23. e5 {[%emt 0:15:19]} Nf5 {[%emt 0:01:44]} 24. b4 {[%emt 0:02:13]} c4 {[%emt 0:04:49]} 25. bxa5 {[%emt 0:08:13]} Qxa5 26. d4 {[%emt 0:01:05]} c5 {[%emt 0:13:45]} 27. g4 {[%emt 0:17:28]} hxg4 {[%emt 0:00:52]} 28. hxg4 {[%emt 0:00:03]} Ne7 {[%emt 0:04:20]} 29. Ne4 {[%emt 0:04:59]} cxd4 {[%emt 0:00:35]} 30. Nd6+ {[%emt 0:00:08]} Rxd6 {[%emt 0:01:02]} 31. exd6 {[%emt 0:00:05]} Nc6 {[%emt 0:02:08]} 32. Nf3 {[%emt 0:07:18]} Qxc3 {[%emt 0:06:08]} 33. Qg2 {[%emt 0:03:11]} Bd5 {[%emt 0:03:33]} 34. d7+ {[%emt 0:01:18]} Kd8 {[%emt 0:00:14]} 35. Re8+ {[%emt 0:03:03]} Rxe8 {[%emt 0:01:07]} 36. dxe8=Q+ {[%emt 0:00:05]} Kxe8 {[%emt 0:00:02]} 37. Qe2+ {[%emt 0:00:23]} Kd7 {[%emt 0:01:00]} 38. Re1 {[%emt 0:00:10]} Be6 {[%emt 0:00:28]} 39. Ne5+ {[%emt 0:01:13]} Nxe5 {[%emt 0:00:47]} 40. Bxe5 {[%emt 0:00:04]} Bxe5 {[%emt 0:02:15]} 41. Qxe5 {[%emt 0:00:05]} Qd2 {[%emt 0:00:44]} 42. Re4 {[%emt 0:01:09]} Qd1+ {[%emt 0:00:16]} 43. Kf2 {[%emt 0:00:26]} Qd2+ {[%emt 0:00:13]} 44. Kg3 {[%emt 0:00:38]} Qd3+ {[%emt 0:00:54]} 45. Kh4 {[%emt 0:01:00]} Ke7 {[%emt 0:00:38]} 46. Rxd4 {[%emt 0:00:29]} Qa3 {[%emt 0:00:19]} 47. Qc7+ {[%emt 0:00:32]} Kf6 {[%emt 0:00:33]} 48. Qf4+ {[%emt 0:02:44]} Kg7 {[%emt 0:00:20]} 49. Qe5+ {[%emt 0:01:26]} f6 {[%emt 0:00:33]} 50. Qg3 {[%emt 0:01:11]} Qc1 {[%emt 0:00:41]} 51. Rd6 {[%emt 0:00:42]} Qh6# {[%emt 0:00:04]} 0-1

[Event "Panchenko Memorial-B 2021"]
[Site "Chelyabinsk"]
[Date "2021.09.21"]
[Round "10.2"]
[White "Charochkina, Daria"]
[Black "Goltseva, Ekaterina"]
[Result "1-0"]
[ECO "A45"]
[WhiteElo "2307"]
[BlackElo "2286"]
[Annotator "ChessBase"]
[PlyCount "55"]
[EventDate "2021.09.13"]
[EventType "swiss"]
[EventCountry "RUS"]
[SourceTitle "playchess.com"]
[Source "ChessBase"]
[SourceQuality "1"]
[TimeControl "5400+30"]

1. d4 {[%emt 0:03:39]} Nf6 {[%emt 0:00:13]} 2. Bg5 {[%emt 0:00:26]} Ne4 {[%emt 0:02:40]} 3. Bf4 {[%emt 0:00:08]} d5 {[%emt 0:00:08]} 4. e3 {[%emt 0:00:06]} c5 {[%emt 0:00:35]} 5. Bd3 {[%emt 0:00:10]} Nf6 {[%emt 0:01:08]} 6. Nc3 {[%emt 0:00:05]} a6 {[%emt 0:05:09]} 7. dxc5 {[%emt 0:00:08]} Nc6 {[%emt 0:03:15]} 8. Nf3 {[%emt 0:00:22]} e6 {[%emt 0:05:33]} 9. O-O {[%emt 0:10:18]} Bxc5 {[%emt 0:01:07]} 10. e4 {[%emt 0:00:16]} d4 {[%emt 0:14:03]} 11. Ne2 {[%emt 0:02:02]} Nh5 {[%emt 0:08:28]} 12. e5 {[%emt 0:03:20]} Qc7 {[%emt 0:08:22]} 13. Re1 {[%emt 0:22:35]} h6 {[%emt 0:19:18]} 14. Bd2 {[%emt 0:01:54]} g5 {[%emt 0:00:47]} 15. Nexd4 {[%emt 0:14:37]} Nxd4 {[%emt 0:11:47]} 16. Nxd4 {[%emt 0:00:05]} Bxd4 {[%emt 0:00:12]} 17. Qxh5 {[%emt 0:00:05]} Bxb2 {[%emt 0:03:35]} 18. Rab1 {[%emt 0:00:07]} Bc3 {[%emt 0:03:38]} 19. Bxc3 {[%emt 0:00:37]} Qxc3 {[%emt 0:00:05]} 20. Re3 {[%emt 0:01:45]} Qc7 {[%emt 0:01:45]} 21. Be4 {[%emt 0:05:46]} Rb8 {[%emt 0:03:15]} 22. h4 {[%emt 0:01:57]} Bd7 {[%emt 0:01:43]} 23. hxg5 {[%emt 0:03:50]} Qxe5 {[%emt 0:00:17]} 24. Bc6 {[%emt 0:00:09]} hxg5 {[%emt 0:02:08]} 25. Bxd7+ {[%emt 0:00:53]} Ke7 {[%emt 0:00:04]} 26. Qxf7+ {[%emt 0:00:37]} Kxf7 {[%emt 0:00:05]} 27. Rxe5 {[%emt 0:00:08]} Rh6 {[%emt 0:00:28]} 28. Rbe1 {[%emt 0:03:31]} 1-0

[Event "Panchenko Memorial-B 2021"]
[Site "Chelyabinsk"]
[Date "2021.09.21"]
[Round "10.3"]
[White "Zhapova, Yana"]
[Black "Yakimova, Mariya"]
[Result "0-1"]
[ECO "B91"]
[WhiteElo "2212"]
[BlackElo "2185"]
[Annotator "ChessBase"]
[PlyCount "70"]
[EventDate "2021.09.13"]
[EventType "swiss"]
[EventCountry "RUS"]
[SourceTitle "playchess.com"]
[Source "ChessBase"]
[SourceQuality "1"]
[TimeControl "5400+30"]

1. e4 {[%emt 0:00:06]} c5 {[%emt 0:00:04]} 2. Nf3 {[%emt 0:00:46]} d6 {[%emt 0:00:05]} 3. d4 {[%emt 0:00:15]} cxd4 {[%emt 0:00:05]} 4. Nxd4 {[%emt 0:00:07]} Nf6 {[%emt 0:00:03]} 5. Nc3 {[%emt 0:00:18]} a6 {[%emt 0:00:04]} 6. g3 {[%emt 0:00:11]} e5 {[%emt 0:00:22]} 7. Nde2 {[%emt 0:00:15]} Be6 {[%emt 0:00:31]} 8. Bg2 {[%emt 0:01:10]} h5 {[%emt 0:07:51]} 9. h3 {[%emt 0:05:50]} Be7 {[%emt 0:11:54]} 10. Be3 {[%emt 0:02:30]} b5 {[%emt 0:02:40]} 11. f4 {[%emt 0:03:42]} Nbd7 {[%emt 0:04:12]} 12. O-O {[%emt 0:11:36]} Rc8 {[%emt 0:06:33]} 13. Nd5 {[%emt 0:20:57]} Nxd5 {[%emt 0:00:46]} 14. exd5 {[%emt 0:00:07]} Bf5 {[%emt 0:00:03]} 15. c3 {[%emt 0:00:28]} Bh7 {[%emt 0:00:13]} 16. Qd2 {[%emt 0:19:19]} Nf6 {[%emt 0:09:30]} 17. Rad1 {[%emt 0:03:25]} Qd7 {[%emt 0:04:47]} 18. Nc1 {[%emt 0:00:45]} e4 {[%emt 0:04:26]} 19. Nb3 {[%emt 0:09:54]} Bf5 {[%emt 0:00:53]} 20. Kh2 {[%emt 0:00:57]} h4 {[%emt 0:01:55]} 21. g4 {[%emt 0:00:27]} Bxg4 {[%emt 0:00:32]} 22. hxg4 {[%emt 0:00:25]} h3 {[%emt 0:15:02]} 23. Bh1 {[%emt 0:02:41]} Nxg4+ {[%emt 0:00:18]} 24. Kg1 {[%emt 0:00:13]} h2+ {[%emt 0:00:14]} 25. Kg2 {[%emt 0:00:15]} Ne5 {[%emt 0:07:52]} 26. f5 {[%emt 0:05:30]} Nf3 {[%emt 0:00:13]} 27. Rxf3 {[%emt 0:00:59]} exf3+ {[%emt 0:00:06]} 28. Kxf3 {[%emt 0:00:06]} Qxf5+ {[%emt 0:00:20]} 29. Ke2 {[%emt 0:00:24]} Kf8 {[%emt 0:03:24]} 30. Nd4 {[%emt 0:01:13]} Qh3 {[%emt 0:00:52]} 31. Rf1 {[%emt 0:03:20]} Bf6 {[%emt 0:00:36]} 32. Rf3 {[%emt 0:02:27]} Qg4 {[%emt 0:03:24]} 33. Kd1 {[%emt 0:01:41]} Re8 {[%emt 0:04:33]} 34. Kc2 {[%emt 0:01:38]} Qg1 {[%emt 0:01:28]} 35. Qc1 {[%emt 0:01:59]} Bxd4 {[%emt 0:00:50]} 0-1

[Event "Panchenko Memorial-B 2021"]
[Site "Chelyabinsk"]
[Date "2021.09.21"]
[Round "10.5"]
[White "Bodnaruk, Anastasia"]
[Black "Balabayeva, Xeniya"]
[Result "1-0"]
[ECO "C24"]
[WhiteElo "2425"]
[BlackElo "2318"]
[Annotator "ChessBase"]
[PlyCount "67"]
[EventDate "2021.09.13"]
[EventType "swiss"]
[EventCountry "RUS"]
[SourceTitle "playchess.com"]
[Source "ChessBase"]
[SourceQuality "1"]
[TimeControl "5400+30"]

1. e4 {[%emt 0:00:02]} e5 {[%emt 0:00:06]} 2. Bc4 {[%emt 0:03:25]} Nf6 {[%emt 0:00:21]} 3. d3 {[%emt 0:00:11]} c6 {[%emt 0:00:19]} 4. Nf3 {[%emt 0:00:28]} Bb4+ {[%emt 0:01:33]} 5. c3 {[%emt 0:00:37]} Bd6 {[%emt 0:07:13]} 6. d4 {[%emt 0:10:57]} Qe7 {[%emt 0:08:25]} 7. O-O {[%emt 0:03:24]} Bc7 {[%emt 0:08:53]} 8. dxe5 {[%emt 0:10:06]} Bxe5 {[%emt 0:09:00]} 9. Re1 {[%emt 0:12:15]} O-O {[%emt 0:06:30]} 10. Bb3 {[%emt 0:09:26]} d6 {[%emt 0:12:25]} 11. Ng5 {[%emt 0:04:26]} h6 {[%emt 0:04:46]} 12. Nxf7 {[%emt 0:00:55]} Rxf7 {[%emt 0:00:13]} 13. Bxf7+ {[%emt 0:00:29]} Qxf7 {[%emt 0:01:48]} 14. f4 {[%emt 0:00:42]} Ng4 {[%emt 0:03:00]} 15. Rf1 {[%emt 0:09:49]} Bf6 {[%emt 0:12:40]} 16. h3 {[%emt 0:00:33]} h5 {[%emt 0:01:32]} 17. hxg4 {[%emt 0:00:51]} Bxg4 {[%emt 0:00:27]} 18. Qd3 {[%emt 0:13:13]} Nd7 {[%emt 0:02:59]} 19. Be3 {[%emt 0:00:02]} Nc5 {[%emt 0:01:15]} 20. Bxc5 {[%emt 0:01:57]} dxc5 {[%emt 0:00:02]} 21. Nd2 {[%emt 0:00:23]} Rd8 {[%emt 0:03:21]} 22. Qe3 {[%emt 0:02:15]} c4 {[%emt 0:02:55]} 23. Nf3 {[%emt 0:00:33]} Rd3 {[%emt 0:00:24]} 24. Qxa7 {[%emt 0:03:02]} Qg6 {[%emt 0:07:55]} 25. f5 {[%emt 0:02:07]} Qh6 {[%emt 0:00:17]} 26. Nh2 {[%emt 0:05:24]} Be5 {[%emt 0:01:42]} 27. Qc5 {[%emt 0:00:42]} Bxh2+ {[%emt 0:01:06]} 28. Kxh2 {[%emt 0:00:01]} b5 {[%emt 0:00:08]} 29. f6 {[%emt 0:03:23]} gxf6 {[%emt 0:00:45]} 30. Rf2 {[%emt 0:01:13]} f5 {[%emt 0:00:48]} 31. exf5 {[%emt 0:01:10]} Qf6 {[%emt 0:00:54]} 32. Re1 {[%emt 0:00:39]} Rd5 {[%emt 0:01:04]} 33. Re8+ {[%emt 0:00:46]} Kg7 {[%emt 0:00:32]} 34. Qa7+ {[%emt 0:00:09]} 1-0